[Event "FIDE WCCC U12 2018"]
[Site "Santiago de Compostela"]
[Date "2018.11.14"]
[Round "10"]
[White "Mekhane, Adam"]
[Black "Amilal Munkhdalai"]
[Result "0-1"]
[ECO "B90"]
[WhiteElo "2065"]
[BlackElo "1864"]
[Annotator "NA RC"]
[PlyCount "72"]
[EventDate "2018.11.04"]
[EventType "swiss"]
[EventCountry "ESP"]
[SourceTitle "playchess.com"]
[Source "ChessBase"]
[SourceQuality "1"]
[TimeControl "40/5400+30:1800+30"]

{[%evp 8,72,24,24,28,20,14,32767,32767,32767,32767,32767,32767,32767,32767,32767,50,43,74,70,65,67,51,43,58,4,103,49,104,118,32767,95,85,32767,32767,32767,-359,-375,32767,-369,-396,-389,32767,-470,-527,32767,-476,-697,-780,-728,32767,-869,-784,-762,32767,-837,-891,-902,-888,32767,32767,32767,32767,32767,-29975,-5127,-29973]} 1. e4 {[%emt 0:00:00]} c5 {[%emt 0:00:00]} 2. Nf3 {[%emt 0:00:00]} d6 {[%emt 0:00:00]} 3. d4 {[%emt 0:00:00]} cxd4 {[%emt 0:00:00]} 4. Nxd4 {[%emt 0:00:00]} Nf6 {[%emt 0:00:00]} 5. Nc3 {[%emt 0:00:00]} a6 {[%emt 0:00:00]} 6. Bc4 {[%emt 0:00:00]} e6 {[%emt 0:00:06]} 7. Bb3 {[%emt 0:00:04]} Nbd7 {[%emt 0:01:01]} 8. f4 {[%emt 0:00:34]} Nc5 {[%emt 0:02:55]} 9. e5 {[%emt 0:02:45]} dxe5 {[%emt 0:05:23] B86: Sizilianisch (Sosin-Angriff)} (9... Nfd7 10. Be3 dxe5 11. fxe5 Be7 12. Nf3 b5 13. Qe2 Bb7 14. O-O O-O 15. Rad1 Qc7 16. Bf4 Rad8 17. a3 Nxb3 18. cxb3 {0-1 (62) Kevlishvili,R (2502)-Ivic,V (2432) Ankara 2018}) 10. fxe5 {[%emt 0:00:06]} Nxb3 {[%emt 0:01:50]} 11. axb3 {[%emt 0:03:07]} Nd7 {[%emt 0:09:42]} 12. Bf4 {[%emt 0:05:05] LiveBook: 3 Games} Bc5 {[%emt 0:02:44] [#]} 13. Ne4 $1 {[%emt 0:09:28]} O-O {[%emt 0:01:49]} 14. Nxc5 {[%emt 0:03:26]} Nxc5 {[%emt 0:00:08]} 15. b4 {[%emt 0:02:22]} Nd7 {[%emt 0:00:57]} 16. Qg4 {[%emt 0:04:48]} Kh8 $146 {[%emt 0:00:38]} ({Vorgänger:} 16... f5 $11 17. Qf3 (17. Qg3 {1-0 (36) Dauletova,G (2253)-Sahl,S (2219) Dresden 2008}) 17... Nb6) 17. O-O {[%emt 0:05:54]} Qe7 {[%emt 0:09:53]} 18. c3 {[%emt 0:09:17]} f5 {[%emt 0:05:09]} 19. Qg3 {[%emt 0:03:57]} Nb6 {[%emt 0:03:14]} 20. Nb5 {[%emt 0:05:09]} axb5 {[%emt 0:00:26]} 21. Be3 {[%emt 0:02:58]} Rxa1 {[%emt 0:00:26]} 22. Rxa1 {[%emt 0:00:01]} Qc7 {[%emt 0:01:57]} 23. Bc5 {[%emt 0:01:44]} Re8 {[%emt 0:02:30]} 24. Rd1 {[%emt 0:06:36]} Nd5 {[%emt 0:01:55]} 25. Rd4 {[%emt 0:02:49]} b6 {[%emt 0:02:55]} 26. Rh4 {[%emt 0:01:46]} Qf7 {[%emt 0:01:31]} 27. Bd6 {[%emt 0:02:09]} Bb7 {[%emt 0:01:15]} 28. b3 {[%emt 0:00:48]} Ra8 {[%emt 0:01:20]} 29. c4 {[%emt 0:01:42]} Ra1+ {[%emt 0:02:25]} 30. Kf2 {[%emt 0:00:44]} Ra2+ {[%emt 0:00:16]} 31. Ke1 {[%emt 0:01:17]} Ne7 {[%emt 0:03:34]} 32. Qh3 {[%emt 0:07:34]} h6 {[%emt 0:05:52]} 33. Bxe7 {[%emt 0:03:57]} Qxe7 {[%emt 0:00:21]} 34. Rxh6+ {[%emt 0:00:06]} gxh6 {[%emt 0:00:04]} 35. Qxh6+ {[%emt 0:00:03]} Kg8 {[%emt 0:00:05]} 36. Qg6+ $19 {[%emt 0:00:03]} Kf8 {[%emt 0:00:09]} 0-1

[Event "FIDE WCCC U12 2018"]
[Site "Santiago de Compostela"]
[Date "2018.11.14"]
[Round "10"]
[White "Rakhmatullaev, Almas"]
[Black "Damjanovic, Vuk"]
[Result "1/2-1/2"]
[ECO "A43"]
[WhiteElo "1921"]
[BlackElo "2053"]
[Annotator "NA RC"]
[PlyCount "99"]
[EventDate "2018.11.04"]
[EventType "swiss"]
[EventCountry "ESP"]
[SourceTitle "playchess.com"]
[Source "ChessBase"]
[SourceQuality "1"]
[TimeControl "40/5400+30:1800+30"]

{[%evp 9,99,-45,0,0,-17,0,22,-2,-18,32767,-13,-9,-9,32767,-12,-20,-9,-25,-14,-32,-20,32767,32767,-30,4,32767,23,0,20,-24,-15,-12,-6,-34,-27,-22,0,0,32767,32,29,32767,45,33,19,43,31,19,32767,14,61,12,32767,32767,0,-17,0,-8,-7,0,32767,-44,-39,32767,-45,-50,-37,-62,-10,-31,0,0,0,0,32767,0,62,32767,31,32767,0,32767,32767,0,32767,32767,32767,32767,32767,0,12,0]} 1. d4 {[%emt 0:00:00]} c5 {[%emt 0:00:00]} 2. c3 {[%emt 0:00:28]} Nf6 {[%emt 0:00:15]} 3. Nf3 {[%emt 0:00:20]} d5 {[%emt 0:00:28]} 4. Bf4 {[%emt 0:10:06]} Qb6 {[%emt 0:01:02]} 5. Nbd2 {[%emt 0:01:59] D02: 1 d4 d5 2 Nf3 sidelines, including 2...Nf6 3 g3 and 2...Nf6 3 Bf4} ({Better is} 5. Qb3 $11 Nc6 6. dxc5 Qxc5 7. Nbd2 e6 8. e3 Be7 9. h3 O-O 10. Be2 b6 11. O-O Bb7 12. a4 Rac8 13. Rfd1 h6 {0-1 (60) Kamsky,G (2721)-Ponomariov,R (2731) Beijing 2013}) 5... cxd4 {[%emt 0:13:31]} 6. cxd4 {[%emt 0:00:36]} Nc6 {[%emt 0:01:41]} 7. e3 {[%emt 0:01:42]} Bf5 {[%emt 0:02:07]} 8. Nh4 {[%emt 0:17:15]} Bg4 $146 {[%emt 0:02:03]} ({Predecessor:} 8... Bd7 9. Qb3 Qxb3 10. Nxb3 e6 11. Nf3 Nb4 12. Rc1 Nxa2 {0-1 (20) Rodriguez Lazo,L (1898)-Curi,G (2175) Montevideo 2018}) 9. Be2 {[%emt 0:01:27]} Bxe2 {[%emt 0:02:27]} 10. Qxe2 {[%emt 0:01:37]} e6 {[%emt 0:00:56]} 11. O-O {[%emt 0:01:05]} Be7 {[%emt 0:03:59]} 12. Nhf3 {[%emt 0:13:07]} O-O {[%emt 0:02:52]} 13. Ne5 {[%emt 0:02:39]} Nxe5 {[%emt 0:03:46]} 14. dxe5 {[%emt 0:00:38]} Ne4 {[%emt 0:20:05]} 15. Nxe4 {[%emt 0:12:09]} dxe4 {[%emt 0:00:18]} 16. Qg4 {[%emt 0:00:16]} Kh8 {[%emt 0:09:45]} ({Much worse is} 16... Qxb2 17. Rab1 $14) 17. Bg3 {[%emt 0:01:25]} Qb4 {[%emt 0:00:28]} 18. a3 {[%emt 0:01:38]} Qa4 {[%emt 0:01:16]} 19. Qd1 {[%emt 0:04:27]} Qxd1 {[%emt 0:08:01]} 20. Rfxd1 {[%emt 0:00:11]} Rfd8 {[%emt 0:00:36]} 21. Kf1 {[%emt 0:00:53]} h5 {[%emt 0:03:34]} 22. f3 {[%emt 0:06:15]} h4 {[%emt 0:01:38]} 23. Be1 {[%emt 0:00:31]} h3 {[%emt 0:00:08]} 24. fxe4 {[%emt 0:01:27]} hxg2+ {[%emt 0:00:12]} 25. Kxg2 {[%emt 0:00:07]} Rac8 {[%emt 0:02:54]} 26. Rxd8+ {[%emt 0:06:16]} Bxd8 {[%emt 0:00:14]} 27. Bc3 {[%emt 0:00:29]} Bb6 {[%emt 0:01:07]} 28. Kf3 {[%emt 0:00:26]} Kh7 {[%emt 0:01:46]} 29. Rg1 {[%emt 0:05:42]} g6 {[%emt 0:02:46]} 30. Ke2 {[%emt 0:01:04]} Kg7 {[%emt 0:00:14]} 31. Rg3 {[%emt 0:00:08]} Rh8 {[%emt 0:00:31]} 32. h3 {[%emt 0:00:13]} Rh4 {[%emt 0:00:10]} 33. Kd3 {[%emt 0:04:04]} Bc7 {[%emt 0:00:34]} 34. Bd4 {[%emt 0:00:51]} a6 {[%emt 0:00:20]} 35. Rf3 {[%emt 0:01:23]} Rh5 {[%emt 0:00:33]} 36. Bc5 {[%emt 0:00:53]} Bxe5 {[%emt 0:02:15]} 37. b4 {[%emt 0:00:17]} f6 {[%emt 0:05:17]} 38. a4 {[%emt 0:00:38]} b5 {[%emt 0:02:11]} 39. a5 {[%emt 0:01:26]} Kf7 {[%emt 0:06:34]} 40. Bd4 {[%emt 0:00:00]} Ke7 {[%emt 0:00:00]} 41. Bxe5 {[%emt 0:09:36]} Rxe5 {[%emt 0:02:58]} 42. Rg3 {[%emt 0:01:57]} Kf7 {[%emt 0:00:10]} (42... g5 $11) 43. Kd4 {[%emt 0:00:52]} Rh5 {[%emt 0:00:35]} 44. Rf3 {[%emt 0:00:42]} (44. Rg1 $16) 44... Ke7 {[%emt 0:10:49]} 45. Rg3 {[%emt 0:00:22]} Kf7 {[%emt 0:00:07]} 46. Rf3 {[%emt 0:00:23]} Kg7 {[%emt 0:03:25]} 47. Rg3 {[%emt 0:00:30]} (47. Rf1 $16) 47... Kh6 {[%emt 0:00:11]} 48. Rf3 {[%emt 0:00:15]} Kg7 {[%emt 0:00:11]} 49. Rg3 {[%emt 0:00:13]} Kh6 $11 {[%emt 0:00:53]} 50. Rf3 {[%emt 0:00:31]} 1/2-1/2

[Event "FIDE WCCC U12 2018"]
[Site "Santiago de Compostela"]
[Date "2018.11.15"]
[Round "11"]
[White "Yoo, Christopher Woojin"]
[Black "Ohanyan, Emin"]
[Result "1-0"]
[ECO "C12"]
[WhiteElo "2407"]
[BlackElo "1742"]
[Annotator "ChessBase"]
[PlyCount "81"]
[EventDate "2018.11.04"]
[EventType "swiss"]
[EventCountry "ESP"]
[SourceTitle "playchess.com"]
[Source "ChessBase"]
[SourceQuality "1"]
[TimeControl "40/5400+30:1800+30"]

1. e4 {[%emt 0:00:00]} e6 {[%emt 0:00:00]} 2. d4 {[%emt 0:00:00]} d5 {[%emt 0:00:00]} 3. Nc3 {[%emt 0:00:00]} Nf6 {[%emt 0:00:00]} 4. Bg5 {[%emt 0:00:00]} Bb4 {[%emt 0:00:02]} 5. Nge2 {[%emt 0:00:00]} h6 {[%emt 0:01:41]} 6. Bxf6 {[%emt 0:00:00]} Qxf6 {[%emt 0:00:07]} 7. a3 {[%emt 0:00:12]} Bxc3+ {[%emt 0:02:05]} 8. Nxc3 {[%emt 0:00:08]} dxe4 {[%emt 0:14:25]} 9. Nxe4 {[%emt 0:00:10]} Qe7 {[%emt 0:00:21]} 10. Bc4 {[%emt 0:04:03]} O-O {[%emt 0:13:06]} 11. Qe2 {[%emt 0:13:24]} Nd7 {[%emt 0:06:00]} 12. O-O-O {[%emt 0:00:52]} Nf6 {[%emt 0:09:24]} 13. Nc3 {[%emt 0:08:10]} Re8 {[%emt 0:07:34]} 14. f4 {[%emt 0:07:31]} Bd7 {[%emt 0:01:47]} 15. g4 {[%emt 0:08:54]} Bc6 {[%emt 0:05:21]} 16. Rhf1 {[%emt 0:03:32]} Nd5 {[%emt 0:03:53]} 17. Bxd5 {[%emt 0:03:24]} Bxd5 {[%emt 0:03:33]} 18. Rg1 {[%emt 0:04:44]} Qh4 {[%emt 0:06:05]} 19. Kb1 {[%emt 0:01:43]} c6 {[%emt 0:09:41]} 20. Rg3 {[%emt 0:11:04]} Kh8 {[%emt 0:04:36]} 21. Qe3 {[%emt 0:13:57]} Qe7 {[%emt 0:09:46]} 22. g5 {[%emt 0:03:36]} g6 {[%emt 0:00:35]} 23. gxh6 {[%emt 0:02:13]} Kh7 {[%emt 0:00:03]} 24. Rg5 {[%emt 0:01:40]} Qf6 {[%emt 0:00:30]} 25. h4 {[%emt 0:01:02]} Rg8 26. Ne2 {[%emt 0:06:18]} Rad8 {[%emt 0:01:27]} 27. b3 {[%emt 0:01:25]} b5 {[%emt 0:00:55]} 28. Nc1 {[%emt 0:00:30]} a5 {[%emt 0:00:22]} 29. Nd3 {[%emt 0:00:38]} a4 {[%emt 0:00:16]} 30. b4 {[%emt 0:00:10]} Bc4 {[%emt 0:00:45]} 31. Ne5 {[%emt 0:00:46]} Bd5 {[%emt 0:00:35]} 32. Rdg1 {[%emt 0:01:33]} Rdf8 {[%emt 0:00:31]} 33. Nd7 {[%emt 0:00:46]} Qe7 {[%emt 0:00:22]} 34. Nxf8+ {[%emt 0:00:06]} Qxf8 {[%emt 0:00:16]} 35. h5 {[%emt 0:00:38]} Qxh6 {[%emt 0:00:17]} 36. R1g3 {[%emt 0:01:02]} Kg7 {[%emt 0:01:02]} 37. Qe5+ {[%emt 0:00:19]} Kh7 {[%emt 0:00:30]} 38. Rh3 {[%emt 0:00:12]} f6 {[%emt 0:00:25]} 39. hxg6+ {[%emt 0:00:09]} Rxg6 {[%emt 0:00:06]} 40. Rxh6+ {[%emt 0:00:00]} Rxh6 {[%emt 0:00:00]} 41. Qc7+ {[%emt 0:00:12]} 1-0

[Event "FIDE WCCC U12 2018"]
[Site "Santiago de Compostela"]
[Date "2018.11.15"]
[Round "11"]
[White "Guo, Arthur"]
[Black "Murzin, Volodar"]
[Result "1-0"]
[ECO "B90"]
[WhiteElo "2333"]
[BlackElo "2340"]
[Annotator "NA"]
[PlyCount "111"]
[EventDate "2018.11.04"]
[EventType "swiss"]
[EventCountry "ESP"]
[SourceTitle "playchess.com"]
[Source "ChessBase"]
[SourceQuality "1"]
[TimeControl "40/5400+30:1800+30"]

{[%evp 8,103,37,27,16,17,18,32767,5,32767,6,32767,18,16,22,18,24,28,34,31,28,39,35,41,53,61,32767,32767,32767,32767,32767,72,68,32767,32767,56,32767,32767,32767,32767,32767,53,32767,32767,44,32767,54,42,68,50,45,32767,28,0,0,32767,0,8,0,32767,25,-5,37,28,31,30,60,32767,74,71,32767,20,106,32767,113,32767,32767,32767,32767,363,32767,32767,32767,32767,729,32767,1004,1136,989,1025,960,32767,32767,32767,32767,32767,32767,1572]} 1. e4 {[%emt 0:00:00]} c5 {[%emt 0:00:00]} 2. Nf3 {[%emt 0:00:00]} d6 {[%emt 0:00:00]} 3. d4 {[%emt 0:00:10]} cxd4 {[%emt 0:00:00]} 4. Nxd4 {[%emt 0:00:30]} Nf6 {[%emt 0:00:00]} 5. Nc3 {[%emt 0:00:16]} a6 {[%emt 0:00:00]} 6. Be3 {[%emt 0:00:19]} e5 {[%emt 0:00:10]} 7. Nf3 {[%emt 0:00:14]} Be7 {[%emt 0:00:19]} 8. Bc4 {[%emt 0:00:05]} O-O {[%emt 0:00:36]} 9. O-O {[%emt 0:00:19]} Qc7 {[%emt 0:02:36] LiveBook: 152 Games} 10. Bb3 {[%emt 0:00:08] B90: Sicilian Najdorf: Unusual White 6th moves, 6 Be3 Ng4 and 6 Be3 e5} Nc6 {[%emt 0:03:32]} (10... Be6 11. Nh4 g6 12. Bh6 Re8 13. Qd2 Nbd7 14. Nf5 Bxb3 15. axb3 Nc5 16. Rae1 Ne6 17. Ne3 Rac8 18. h3 Bf8 19. Bxf8 Rxf8 {1-0 (46) Giri,A (2755)-Anand,V (2776) Moscow 2016}) 11. Bg5 {[%emt 0:02:34]} Be6 {[%emt 0:09:01]} 12. Bxf6 {[%emt 0:01:48]} Bxf6 {[%emt 0:00:06]} 13. Nd5 {[%emt 0:00:28]} Bxd5 {[%emt 0:00:28]} 14. Qxd5 {[%emt 0:03:53]} Be7 $146 {[%emt 0:02:12]} ({Predecessor:} 14... Na5 15. Rfd1 Rfd8 16. c3 Nxb3 17. axb3 Rac8 18. Ne1 Qc6 {1-0 (47) Esquivias Quintero,L (2182)-Montero Campuzano,R (2062) Sevilla 2017}) 15. c3 {[%emt 0:06:42]} Kh8 {[%emt 0:01:11]} 16. Rad1 {[%emt 0:02:25]} Na5 {[%emt 0:04:45]} 17. Ne1 {[%emt 0:02:39]} g6 {[%emt 0:03:38]} 18. Nc2 {[%emt 0:03:12]} Rad8 {[%emt 0:02:25]} 19. Qd2 {[%emt 0:08:07]} Nxb3 {[%emt 0:01:08]} 20. axb3 {[%emt 0:00:04]} f5 {[%emt 0:01:20]} 21. Nb4 {[%emt 0:10:09]} f4 {[%emt 0:02:59]} 22. Nd5 {[%emt 0:00:29]} Qd7 {[%emt 0:00:06]} 23. f3 {[%emt 0:00:23]} Bh4 {[%emt 0:04:31]} 24. Qe2 {[%emt 0:02:14]} Rf7 {[%emt 0:05:43]} 25. Nb4 {[%emt 0:05:21]} Rg8 {[%emt 0:03:55]} 26. Rd5 {[%emt 0:03:35]} Be7 {[%emt 0:01:15]} 27. Nd3 {[%emt 0:07:18]} Qe6 {[%emt 0:06:06]} 28. c4 {[%emt 0:04:15]} g5 {[%emt 0:02:12]} 29. c5 {[%emt 0:07:45]} Rfg7 {[%emt 0:01:30]} 30. Rd1 {[%emt 0:04:19]} g4 {[%emt 0:02:00]} 31. Rd2 {[%emt 0:00:26]} Qf6 {[%emt 0:07:00]} 32. Qf1 {[%emt 0:05:07]} gxf3 {[%emt 0:02:35]} 33. Qxf3 {[%emt 0:00:12]} Rg5 {[%emt 0:00:19]} 34. b4 {[%emt 0:04:23]} dxc5 {[%emt 0:00:53]} 35. bxc5 {[%emt 0:02:37]} a5 {[%emt 0:02:07]} 36. Rc2 {[%emt 0:02:52]} Bf8 {[%emt 0:08:07]} 37. b3 {[%emt 0:01:54]} h6 {[%emt 0:01:18]} (37... Be7 $11) 38. Kh1 {[%emt 0:00:57]} Qe6 {[%emt 0:06:39]} 39. Ne1 {[%emt 0:03:49]} Qe8 {[%emt 0:10:51]} (39... b6 $14) 40. Qc3 {[%emt 0:00:00]} a4 {[%emt 0:00:00]} 41. Nf3 {[%emt 0:14:26]} Rh5 {[%emt 0:05:25]} 42. b4 {[%emt 0:01:02]} Kh7 {[%emt 0:05:08]} 43. Qd3 {[%emt 0:01:37]} Bg7 {[%emt 0:00:36]} 44. b5 {[%emt 0:03:02]} Qa8 {[%emt 0:00:24]} 45. Rd7 {[%emt 0:02:31]} a3 {[%emt 0:00:53]} 46. Ra2 {[%emt 0:00:30]} Qa4 {[%emt 0:00:18]} 47. Rxa3 {[%emt 0:00:16]} Qb4 {[%emt 0:00:01]} 48. Rc3 {[%emt 0:01:28]} Ra8 {[%emt 0:00:05]} 49. Rc1 {[%emt 0:00:28]} Qb2 {[%emt 0:00:34]} 50. Qd2 {[%emt 0:00:17]} Qxb5 {[%emt 0:00:09]} 51. Qd5 {[%emt 0:01:01]} Qb2 {[%emt 0:00:19]} 52. Rg1 $18 {[%emt 0:00:13]} Ra1 {[%emt 0:01:48]} 53. h3 {[%emt 0:02:09]} Qf2 {[%emt 0:04:14]} 54. Rxg7+ {[%emt 0:02:23]} Kxg7 {[%emt 0:00:04]} 55. Qd7+ {[%emt 0:00:05]} Kf8 {[%emt 0:00:07]} 56. Rxa1 {[%emt 0:00:08]} 1-0

[Event "FIDE WCCC U12 2018"]
[Site "Santiago de Compostela"]
[Date "2018.11.15"]
[Round "11"]
[White "Kostolansky, Sebastian Lukas"]
[Black "Bui, Bao Anh Le"]
[Result "1-0"]
[ECO "B90"]
[WhiteElo "2323"]
[BlackElo "2101"]
[Annotator "NA"]
[PlyCount "72"]
[EventDate "2018.11.04"]
[EventType "swiss"]
[EventCountry "ESP"]
[SourceTitle "playchess.com"]
[Source "ChessBase"]
[SourceQuality "1"]
[TimeControl "40/5400+30:1800+30"]

{[%evp 8,70,12,38,13,22,16,23,19,6,18,6,11,42,42,33,39,33,42,16,57,37,75,44,32767,120,32767,32767,108,8,35,32767,-8,0,-2,-2,41,14,32767,0,10,8,0,-8,-7,32767,32767,-30,808,325,409,356,317,32767,314,32767,32767,32767,679,668,675,832,791,32767,967]} 1. e4 {[%emt 0:00:00]} c5 {[%emt 0:00:00]} 2. Nf3 {[%emt 0:00:00]} d6 {[%emt 0:00:00]} 3. d4 {[%emt 0:00:00]} cxd4 {[%emt 0:00:00]} 4. Nxd4 {[%emt 0:00:00]} Nf6 {[%emt 0:00:00]} 5. Nc3 {[%emt 0:00:00]} a6 {[%emt 0:00:34]} 6. Be3 {[%emt 0:00:00]} e5 {[%emt 0:00:18]} 7. Nb3 {[%emt 0:00:07]} Be6 {[%emt 0:00:12]} 8. f4 {[%emt 0:00:16]} exf4 {[%emt 0:01:16]} 9. Bxf4 {[%emt 0:00:06]} Nc6 {[%emt 0:00:26]} 10. Qe2 {[%emt 0:00:19]} Be7 {[%emt 0:00:25]} 11. h3 {[%emt 0:00:07] B90: Sicilian Najdorf: Unusual White 6th moves, 6 Be3 Ng4 and 6 Be3 e5} Nd7 {[%emt 0:00:20]} 12. O-O-O {[%emt 0:01:48]} Nde5 {[%emt 0:00:08] LiveBook: 31 Games} 13. Kb1 {[%emt 0:12:39] [#]} Ng6 $146 {[%emt 0:04:57]} ({Predecessor:} 13... O-O 14. g4 Rc8 15. Qg2 {½-½ (40) Negi,P (2634)-Cheparinov,I (2678) Helsingor 2013}) 14. Be3 {[%emt 0:05:08]} Qc7 {[%emt 0:04:32]} 15. g4 {[%emt 0:02:49]} Rc8 {[%emt 0:13:42]} 16. g5 {[%emt 0:21:24]} Nce5 {[%emt 0:06:47]} 17. Nd5 {[%emt 0:22:34]} Qc4 {[%emt 0:17:40]} 18. Qd2 {[%emt 0:16:38]} (18. Nb6 $16 Qxe2 19. Bxe2) 18... Qxe4 {[%emt 0:06:20]} 19. Nxe7 {[%emt 0:05:13]} Nxe7 {[%emt 0:00:38]} 20. Bg2 {[%emt 0:02:29]} Qg6 {[%emt 0:01:40]} 21. Nd4 {[%emt 0:02:54]} Nc4 {[%emt 0:05:13]} 22. Qf2 {[%emt 0:00:16]} Nxe3 {[%emt 0:00:17]} 23. Qxe3 {[%emt 0:00:06]} Nf5 {[%emt 0:00:33]} 24. Nxf5 {[%emt 0:03:19] Pin} Qxf5 {[%emt 0:00:07]} 25. Bxb7 {[%emt 0:01:36]} Rxc2 {[%emt 0:20:49]} 26. Be4 {[%emt 0:03:06]} Qc5 {[%emt 0:00:03]} 27. Qd3 {[%emt 0:02:51]} Qc4 $2 {[%emt 0:02:33]} (27... Rc4 $15) 28. Qxc2 {[%emt 0:00:25]} (28. Qxd6 $142 {[%csl Gd1][%cal Rd6d8]} Rc1+ 29. Rxc1 Qxe4+ 30. Ka1) 28... Qxa2+ {[%emt 0:00:18]} 29. Kc1 {[%emt 0:00:04]} O-O {[%emt 0:00:05]} 30. Rxd6 {[%emt 0:01:03]} Qa1+ {[%emt 0:00:42]} 31. Kd2 Qa5+ {[%emt 0:00:20]} 32. Ke2 {[%emt 0:00:59]} Rc8 $2 {[%emt 0:00:26]} (32... Qe5) 33. Qd2 {[%emt 0:00:21]} Qb5+ {[%emt 0:01:36]} 34. Kf3 {[%emt 0:00:14]} Rf8 {[%emt 0:01:56]} 35. Rd8 {[%emt 0:00:28]} Qb3+ $18 {[%emt 0:00:08]} 36. Kf4 {[%emt 0:00:12]} Qb4 {[%emt 0:01:30]} 1-0

[Event "FIDE WCCC U12 2018"]
[Site "Santiago de Compostela"]
[Date "2018.11.15"]
[Round "11"]
[White "Ghazarian, Kirk"]
[Black "Samadov, Read"]
[Result "1/2-1/2"]
[ECO "C03"]
[WhiteElo "2264"]
[BlackElo "2029"]
[Annotator "NA"]
[PlyCount "35"]
[EventDate "2018.11.04"]
[EventType "swiss"]
[EventCountry "ESP"]
[SourceTitle "playchess.com"]
[Source "ChessBase"]
[SourceQuality "1"]
[TimeControl "40/5400+30:1800+30"]

{[%evp 8,34,29,16,22,13,25,24,16,15,6,12,14,12,6,-8,0,-43,-32,-39,-45,-45,-50,32767,32767,-48,-44,32767,-41]} 1. e4 {[%emt 0:00:00]} e6 {[%emt 0:00:00]} 2. d4 {[%emt 0:00:06]} d5 {[%emt 0:00:00]} 3. Nd2 {[%emt 0:00:09]} a6 {[%emt 0:00:00]} 4. Ngf3 {[%emt 0:02:09]} c5 {[%emt 0:00:24]} 5. exd5 {[%emt 0:00:18]} exd5 {[%emt 0:00:15]} 6. dxc5 {[%emt 0:02:52]} Bxc5 {[%emt 0:00:34]} 7. Bd3 {[%emt 0:00:29]} Nf6 {[%emt 0:02:21]} 8. O-O {[%emt 0:00:10] C08: French Tarrasch: 3...c5 4 exd5 exd5 sidelines} O-O {[%emt 0:00:53]} 9. h3 {[%emt 0:01:09]} Nc6 {[%emt 0:03:35]} 10. Nb3 {[%emt 0:00:18]} Bb6 {[%emt 0:00:53]} 11. c3 {[%emt 0:02:01] LiveBook: 9 Games} (11. Re1 Ne4 12. Be3 Bc7 13. c4 Be6 14. Nc5 Nxc5 15. Bxc5 Re8 {0-1 (53) Hammer,J (2677)-Topalov,V (2798) Stavanger 2015}) 11... Ne4 {[%emt 0:09:36]} 12. Qc2 {[%emt 0:02:24]} Re8 $146 {[%emt 0:03:26]} ({Predecessor:} 12... f5 13. Bf4 Qf6 14. Rad1 Be6 15. Qe2 Kh8 {0-1 (36) Wang,Y (2382)-Straub,N (2382) Moscow 2001}) 13. Be3 {[%emt 0:02:34]} Bxe3 {[%emt 0:04:23]} 14. fxe3 {[%emt 0:00:05]} Bf5 {[%emt 0:03:52]} 15. Nbd4 {[%emt 0:02:20]} Bg6 {[%emt 0:03:39]} 16. Rad1 {[%emt 0:19:57]} Qe7 {[%emt 0:07:25]} 17. Rfe1 {[%emt 0:03:15]} Rac8 $15 {[%emt 0:03:43]} 18. Qe2 {[%emt 0:07:25]} 1/2-1/2

[Event "FIDE WCCC U12 2018"]
[Site "Santiago de Compostela"]
[Date "2018.11.15"]
[Round "11"]
[White "Lazavik, Denis"]
[Black "Han, Yichen"]
[Result "1-0"]
[ECO "E68"]
[WhiteElo "2235"]
[BlackElo "2061"]
[Annotator "NA"]
[PlyCount "79"]
[EventDate "2018.11.04"]
[EventType "swiss"]
[EventCountry "ESP"]
[SourceTitle "playchess.com"]
[Source "ChessBase"]
[SourceQuality "1"]
[TimeControl "40/5400+30:1800+30"]

{[%evp 8,78,31,32767,27,29,22,37,36,26,42,25,52,15,40,49,36,39,45,19,81,43,91,32767,32767,32767,32767,32767,82,32767,85,32767,32767,68,60,77,64,71,63,77,149,32767,141,143,167,155,157,32767,167,148,154,118,132,133,253,265,32767,32767,32767,194,189,32767,172,171,561,717,32767,437,396,376,635,32767,949]} 1. d4 {[%emt 0:00:00]} Nf6 {[%emt 0:00:00]} 2. c4 {[%emt 0:00:10]} g6 {[%emt 0:00:00]} 3. g3 {[%emt 0:00:33]} Bg7 {[%emt 0:00:00]} 4. Bg2 {[%emt 0:00:38]} O-O {[%emt 0:00:00]} 5. Nc3 {[%emt 0:00:51]} d6 {[%emt 0:00:12]} 6. Nf3 {[%emt 0:00:38]} Nbd7 {[%emt 0:00:21]} 7. O-O {[%emt 0:00:39]} e5 {[%emt 0:00:41]} 8. e4 {[%emt 0:00:41]} exd4 {[%emt 0:00:41]} 9. Nxd4 {[%emt 0:02:02]} Re8 {[%emt 0:00:41]} 10. h3 {[%emt 0:00:46]} a6 {[%emt 0:00:15]} 11. Be3 {[%emt 0:04:34]} Rb8 {[%emt 0:01:03]} 12. b3 {[%emt 0:04:35] E68: King's Indian: Fianchetto: 6...Nbd7 7 0-0 e5 8 e4} (12. a4 a5 13. Qc2 c6 14. Rad1 Qc7 15. f4 Nc5 16. g4 Bd7 17. f5 Rbc8 18. g5 Nfxe4 19. Bxe4 d5 20. Bf4 Qb6 21. f6 Bf8 {½-½ (55) Ding,L (2777)-Mamedyarov,S (2799) Huaian 2017}) 12... Ne5 {[%emt 0:01:06] LiveBook: 18 Games} 13. a4 {[%emt 0:05:38]} c5 {[%emt 0:00:56]} 14. Nde2 {[%emt 0:00:28]} Nc6 {[%emt 0:01:48]} 15. Ra2 {[%emt 0:05:47]} Qc7 {[%emt 0:16:07]} 16. Rd2 {[%emt 0:02:56]} Bf8 $146 {[%emt 0:10:03]} ({Predecessor:} 16... Be6 17. Rxd6 Nd4 18. Rxd4 cxd4 19. Bxd4 Rbd8 20. Nd5 Bxd5 21. exd5 {0-1 (31) Nedilko,V (2383)-Bortnyk,M (2432) Lutsk 2018}) 17. Qc2 {[%emt 0:15:54]} Nb4 {[%emt 0:01:49]} 18. Qb1 {[%emt 0:01:55]} b6 {[%emt 0:10:18]} 19. Rfd1 {[%emt 0:04:14]} Bb7 {[%emt 0:03:12]} 20. Bf4 {[%emt 0:03:25]} Rbd8 {[%emt 0:04:54]} 21. g4 {[%emt 0:04:14]} Bc6 {[%emt 0:08:19]} 22. Ng3 {[%emt 0:05:01]} h6 {[%emt 0:12:58]} 23. Qc1 {[%emt 0:06:16]} Rd7 {[%emt 0:04:10]} (23... Kh7 $14) 24. Re2 {[%emt 0:05:58]} Kh7 {[%emt 0:01:00] [#]} 25. g5 $1 {[%emt 0:00:47]} hxg5 {[%emt 0:01:01]} 26. Bxg5 {[%emt 0:00:06]} Ng8 {[%emt 0:04:50]} 27. Qf4 {[%emt 0:01:59]} Bh6 {[%emt 0:00:38]} 28. Bxh6 {[%emt 0:00:51]} Nxh6 {[%emt 0:00:08]} 29. h4 {[%emt 0:00:30]} Rdd8 {[%emt 0:02:11]} 30. h5 {[%emt 0:06:05]} Qe7 {[%emt 0:00:55] [#]} (30... Re5 $16) 31. Nd5 $1 {[%emt 0:01:03]} Bxd5 {[%emt 0:00:43]} 32. exd5 {[%emt 0:00:07]} Qf8 {[%emt 0:01:10]} 33. Ne4 {[%emt 0:01:15]} Kh8 {[%emt 0:01:28]} 34. Re3 {[%emt 0:02:22]} f5 {[%emt 0:05:10]} 35. Ng5 {[%emt 0:00:49]} Ng4 $2 {[%emt 0:01:20]} (35... Rxe3 36. Qxe3 Qf6) 36. Rh3 {[%emt 0:02:51]} Qf6 {[%emt 0:00:33]} 37. Nf7+ {[%emt 0:00:56]} Kg7 {[%emt 0:01:02]} 38. Nxd8 {[%emt 0:00:09]} Qxd8 $2 {[%emt 0:00:24]} (38... g5) 39. hxg6 {[%emt 0:00:42]} Kxg6 $18 {[%emt 0:00:20]} 40. f3 {[%emt 0:00:00]} 1-0